bitfinex-derivatives/quotes_SOLF0:USTF0_20240913
["timestamp","ask_amount","ask_price","bid_price","bid_amount"]
[1726268934361,3.5964,138.95,138.91,3.5974]
[1726268934570,2.8093,138.99,138.9,3.5976]
[1726268934763,1.3668,138.98,138.9,3.5976]
[1726268935461,3.5968,138.94,138.89,3.5979]
[1726268937368,3.597,138.93,138.89,3.5979]
[1726268937769,3.597,138.93,138.88,3.5981]
[1726268938471,3.597,138.93,138.85,9.9667]
[1726268938770,17.0543141,139.01,138.85,9.9667]
[1726268938962,21.1707141,139.0,138.93,3.5968]
[1726268939162,17.0543141,138.99,138.92,3.58913078]
[1726268939375,17.0543141,138.98,138.85,9.9667]
[1726268939567,20.6503141,138.97,138.93,3.5968]
[1726268939767,3.596,138.97,138.93,3.5968]
[1726268941468,20.66526182,138.97,138.93,3.5968]
[1726268941771,3.596,138.97,138.93,3.5968]
[1726268942970,3.596,138.97,138.85,9.9667]
[1726268942971,3.5957,138.98,138.94,3.5965]
[1726268943271,20.6773377,138.98,138.94,3.5965]
[1726268943470,17.0816377,138.97,138.94,3.5965]
[1726268943677,3.5957,138.98,138.94,3.5965]
[1726268944667,4.1164,139.0,138.91,4.2175]
[1726268945175,3.5963,138.96,138.92,3.597]
[1726268945372,4.1164,139.0,138.84,7.195]
[1726268945672,4.1164,139.0,138.85,11.4488]
[1726268946180,21.1980377,139.0,138.9,3.5975]
[1726268946474,17.0816377,138.99,138.9,3.5975]
[1726268946677,17.0816377,138.98,138.9,3.5975]
[1726268946879,3.5965,138.95,138.9,3.5975]
[1726268947681,4.1164,139.0,138.85,11.4488]
[1726268948681,21.17425113,139.0,138.85,11.4488]
[1726268948878,17.05785113,138.99,138.85,11.4488]
[1726268949070,3.5961,138.97,138.93,3.5968]
[1726268949270,20.65395113,138.97,138.93,3.5968]
[1726268949465,4.1164,139.0,138.91,3.52934713]
[1726268949680,4.1164,139.0,138.85,18.6463]
[1726268950479,3.596,138.97,138.94,3.5964]
[1726268951370,4.1164,139.0,138.94,3.5965]
[1726268951371,3.5958,138.98,138.94,3.5965]
[1726268951568,4.1164,139.0,138.94,3.5965]
[1726268951878,21.17434017,139.0,138.94,3.5965]
[1726268952072,17.05794017,138.99,138.94,3.5965]
[1726268952272,17.05794017,138.98,138.94,3.5965]
[1726268952469,4.1164,139.0,138.94,3.5965]
[1726268953075,3.5957,138.98,138.94,3.5965]
[1726268953279,3.5957,138.98,138.92,3.59375259]
[1726268953280,4.1164,139.0,138.93,3.5968]
[1726268953675,3.5957,138.98,138.93,3.5968]
[1726268954679,3.5959,138.97,138.93,3.5968]
[1726268955983,3.5957,138.98,138.94,3.5964]
[1726268957570,3.5957,138.98,138.95,3.5963]
[1726268957775,3.5957,138.98,138.87,149.35571777]
[1726268958186,3.5957,138.98,138.94,3.5965]
[1726268958387,3.5959,138.97,138.94,3.5965]
[1726268960583,3.5957,138.98,138.94,3.5965]
[1726268964082,3.5955,138.99,138.95,3.5963]
[1726268965584,4.9206,139.0,138.95,3.5963]
[1726268967185,3.5952,139.0,138.95,3.5963]
[1726268967387,3.5952,139.0,138.96,3.5961]
[1726268968681,3.5949,139.01,138.96,3.5961]
[1726268968881,4.0924,139.04,138.93,3.65213816]
[1726268969087,4.0924,139.04,138.94,2.7713]
[1726268969387,3.5946,139.02,138.96,3.5959]
[1726268969694,3.5946,139.02,138.94,2.7713]
[1726268970094,3.5944,139.03,138.94,4.1882]
[1726268970300,4.0924,139.04,138.94,4.1882]
[1726268970491,3.5948,139.02,138.97,3.5957]
[1726268971702,3.5948,139.01,138.97,3.5957]
[1726268976001,3.5951,139.0,138.96,3.5961]
[1726268977390,3.5951,139.0,138.97,3.5958]
[1726268977704,4.0924,139.04,138.94,4.1882]
[1726268977888,4.0924,139.04,138.97,3.5957]
[1726268978296,3.595,139.01,138.97,3.5957]
[1726268978491,17.05960754,139.08,138.94,4.1882]
[1726268978695,1.3974,139.08,138.94,4.1882]
[1726268978897,3.5941,139.04,138.94,4.1882]
[1726268979102,1.3974,139.08,138.99,3.5952]
[1726268979604,3.5942,139.04,138.99,3.5952]
[1726268980091,3.5942,139.04,139.0,3.5951]
[1726268984809,3.5943,139.03,138.99,3.5953]
[1726268987812,3.5946,139.02,138.99,3.5953]
[1726268988110,3.5946,139.02,138.98,3.5955]
[1726268988909,1.0,139.04,138.98,3.5955]
[1726268989111,1.0,139.04,138.97,3.5958]
[1726268989112,3.595,139.01,138.97,3.5958]
[1726268989302,2.8414,139.03,138.97,3.5958]
[1726268989509,3.5951,139.01,138.97,3.5958]
[1726268989913,1.4463,139.03,138.94,4.1882]
[1726268990115,3.5947,139.02,138.94,4.1882]
[1726268990315,1.4463,139.03,138.94,4.1882]
[1726268990814,5.0408,139.03,138.99,3.5951]
[1726268991110,5.0408,139.03,138.94,4.1882]
[1726268991305,3.5946,139.02,138.94,4.1882]
[1726268991513,1.4463,139.03,138.94,4.1882]
[1726268992612,3.5948,139.02,138.94,4.1882]
[1726268992909,3.5946,139.02,138.99,3.5951]
[1726268997413,3.5944,139.03,138.94,4.1882]
[1726268998113,1.0,139.04,138.94,4.1882]
[1726268998905,3.5951,139.0,138.97,3.5957]
[1726268999906,3.5955,138.99,138.96,3.596]
[1726269000111,4.146,139.03,138.96,3.596]
[1726269001422,3.5952,139.0,138.96,3.596]
[1726269003316,3.5954,138.99,138.95,3.5963]
[1726269003619,24.91894806,139.03,138.93,3.65403959]
[1726269003824,7.82531149,139.03,138.91,1.4024]
[1726269004010,7.82531149,139.03,138.91,4.97307324]
[1726269004218,7.82531149,139.03,138.91,1.4024]
[1726269004418,3.5957,138.98,138.94,3.5965]
[1726269004820,7.82531149,139.03,138.91,1.4024]
[1726269005024,7.82531149,139.03,138.93,3.5968]
[1726269006217,3.5963,138.96,138.91,4.9998]
[1726269006411,7.82531149,139.03,138.91,3.57355107]
[1726269007010,3.596,138.97,138.92,3.597]
[1726269008024,7.82531149,139.03,138.91,3.57355107]
[1726269008229,7.82531149,139.03,138.9,1.3082]
[1726269008820,3.5955,138.99,138.9,4.98174216]
[1726269009230,3.5955,138.99,138.94,3.5965]
[1726269013232,1.3872,138.98,138.94,3.5965]
[1726269013426,4.9828,138.98,138.94,3.5965]
[1726269015932,3.5959,138.97,138.93,3.5968]
[1726269017230,3.5963,138.96,138.91,3.5973]
[1726269017430,3.5963,138.96,138.9,3.67354216]
[1726269017738,3.5963,138.96,138.88,1.437]
[1726269017938,3.5963,138.96,138.92,3.597]
[1726269022036,3.5966,138.95,138.91,3.60726558]
[1726269022245,3.5966,138.95,138.91,3.5974]
[1726269022444,3.5966,138.95,138.91,7.23109117]
[1726269023140,3.5966,138.95,138.92,3.5972]
[1726269024939,3.5971,138.93,138.89,3.5978]
[1726269025138,2.7251,138.97,138.9,3.57601973]
[1726269025335,2.7251,138.97,138.88,1.437]
[1726269025536,3.5965,138.95,138.91,3.5973]
[1726269025930,2.7251,138.97,138.88,1.437]
[1726269026133,3.5968,138.94,138.9,3.5977]
[1726269029342,2.7251,138.97,138.87,149.35571777]
[1726269029343,3.67775745,138.96,138.87,149.35571777]
[1726269030937,3.5971,138.93,138.88,3.5981]
[1726269032048,3.5972,138.92,138.88,3.5981]
[1726269033745,3.5972,138.92,138.87,149.35571777]
[1726269033746,3.5972,138.92,138.89,3.5979]
[1726269034043,3.597,138.93,138.89,3.5979]
[1726269035247,3.5972,138.92,138.89,3.5979]
[1726269036347,3.5972,138.92,138.88,3.5981]
[1726269036648,3.5972,138.92,138.87,149.35571777]
[1726269037149,3.5972,138.92,138.88,3.5981]
[1726269037352,3.5972,138.92,138.87,149.35571777]
[1726269037645,3.5972,138.92,138.88,3.598]
[1726269039342,3.5972,138.92,138.89,3.5978]
[1726269043152,3.5969,138.93,138.9,3.5977]
[1726269044144,3.5969,138.93,138.89,3.5978]
[1726269046351,3.5965,138.95,138.91,3.5974]
[1726269046661,3.5965,138.95,138.9,3.53072385]
[1726269046841,3.5965,138.95,138.91,3.5973]
[1726269047045,3.5965,138.95,138.9,3.61926188]
[1726269047247,3.5965,138.95,138.88,1.4262]
[1726269047549,3.5965,138.95,138.91,3.5973]
[1726269060160,2.7251,138.97,138.88,1.4262]
[1726269060757,3.5969,138.94,138.88,1.4262]
[1726269062662,3.5969,138.93,138.9,3.5976]
[1726269063268,3.5969,138.93,138.89,3.5978]
[1726269064162,3.61432272,138.96,138.83,4.85344348]
[1726269064362,2.7251,138.97,138.83,6.23954348]
[1726269065264,2.7251,138.97,138.87,3.5983]
[1726269065758,3.62825965,138.96,138.87,3.5983]
[1726269065959,2.7251,138.97,138.83,6.23954348]
[1726269066762,2.7251,138.97,138.83,27.82954348]
[1726269067059,2.7251,138.97,138.91,3.5973]
[1726269068870,3.5965,138.95,138.91,3.5973]
[1726269069174,2.7251,138.97,138.83,6.23954348]
[1726269069371,3.5969,138.94,138.83,6.23954348]
[1726269069572,3.5969,138.94,138.89,3.5978]
[1726269069773,2.7251,138.97,138.89,3.5978]
[1726269070973,3.5968,138.94,138.9,3.5976]
[1726269077567,3.5969,138.93,138.89,3.5978]
[1726269078081,3.5969,138.93,138.9,3.5977]
[1726269078781,3.5969,138.93,138.89,3.5978]
[1726269081771,3.5973,138.92,138.89,3.5978]
[1726269081970,2.7251,138.97,138.88,3.5981]
[1726269082167,3.5981,138.89,138.83,6.23954348]
[1726269082473,3.5981,138.89,138.86,3.5987]
[1726269082865,3.5978,138.9,138.83,6.23954348]
[1726269083070,17.10200168,138.93,138.83,6.23954348]
[1726269083366,2.7251,138.97,138.83,6.23954348]
[1726269083367,17.10200168,138.92,138.83,6.23954348]
[1726269083572,2.7251,138.97,138.83,6.23954348]
[1726269083782,2.7251,138.97,138.89,3.5978]
[1726269084274,2.7251,138.97,138.87,3.5983]
[1726269084275,19.82829928,138.97,138.87,3.5983]
[1726269084575,3.61952258,138.96,138.87,3.5983]
[1726269085370,3.5976,138.91,138.87,3.5983]
[1726269089782,3.5977,138.9,138.87,3.5983]
[1726269089972,3.5977,138.9,138.86,3.5986]
[1726269090285,3.598,138.89,138.83,6.23954348]
[1726269091684,3.598,138.89,138.85,3.5987]
[1726269091884,3.5982,138.88,138.85,3.5987]
[1726269096384,3.5982,138.88,138.86,3.5987]
[1726269096782,3.5981,138.89,138.83,6.23954348]
[1726269097386,3.5981,138.89,138.84,3.599]
[1726269097590,3.5981,138.89,138.83,6.23954348]
[1726269098084,3.5981,138.89,138.86,3.5985]
[1726269100190,3.5981,138.89,138.87,3.5985]
[1726269100589,3.5978,138.9,138.87,3.5985]
[1726269101389,3.5975,138.91,138.83,6.23954348]
[1726269102189,3.5975,138.91,138.88,3.5981]
[1726269104586,3.5978,138.9,138.87,3.5984]
[1726269105791,2.7251,138.97,138.86,3.5986]
[1726269105792,3.5979,138.89,138.86,3.5986]
[1726269107585,3.5979,138.89,138.85,3.5989]
[1726269107783,2.8572,138.92,138.85,3.5989]
[1726269109183,3.5977,138.9,138.85,3.5989]
[1726269110297,3.598,138.89,138.85,3.5989]
[1726269110897,2.8572,138.92,138.83,6.23954348]
[1726269111285,3.5978,138.9,138.83,6.23954348]
[1726269111491,3.5978,138.9,138.86,3.5986]
[1726269111990,3.598,138.89,138.86,3.5986]
[1726269112500,3.5985,138.87,138.83,6.23954348]
[1726269113095,3.5985,138.87,138.84,3.5992]
[1726269113291,3.5989,138.86,138.83,1.18181818]
[1726269113498,2.8572,138.92,138.83,1.18181818]
[1726269113891,2.8572,138.92,138.83,4.78131818]
[1726269114995,3.5987,138.87,138.83,4.78131818]
[1726269120001,3.5988,138.86,138.83,4.78131818]
[1726269124907,2.8572,138.92,138.83,1.18181818]
[1726269125502,3.5989,138.86,138.83,1.18181818]
[1726269127805,3.5989,138.86,138.83,4.78131818]
[1726269130409,2.8572,138.92,138.83,4.78131818]
[1726269130796,3.5986,138.87,138.83,4.78131818]
[1726269131708,3.5983,138.88,138.84,3.5992]
[1726269131911,2.8572,138.92,138.83,1.18181818]
[1726269132100,3.5981,138.89,138.85,3.5988]
[1726269134212,2.8572,138.92,138.84,3.5992]
[1726269134408,2.8572,138.92,138.83,1.18181818]
[1726269135007,3.5981,138.89,138.85,3.5988]
[1726269140116,2.8572,138.92,138.85,3.5988]
[1726269140612,19.9723902,138.92,138.85,3.5988]
[1726269140818,3.5981,138.89,138.85,3.5988]
[1726269141113,17.1151902,138.9,138.84,3.5991]
[1726269141318,3.5983,138.88,138.84,3.5991]
[1726269151034,3.5985,138.87,138.83,4.78121818]
[1726269152838,2.8572,138.92,138.83,1.18181818]
[1726269153228,19.94575783,138.92,138.83,1.18181818]
[1726269153431,17.08855783,138.91,138.83,1.18181818]
[1726269153630,17.08855783,138.9,138.83,1.18181818]
[1726269153832,2.8572,138.92,138.83,1.18181818]
[1726269153833,17.08855783,138.89,138.83,1.18181818]
[1726269154034,17.08855783,138.88,138.83,1.18181818]
[1726269154231,2.8572,138.92,138.83,1.18181818]
[1726269155136,3.5986,138.87,138.83,4.78111818]
[1726269155837,3.5988,138.86,138.83,1.18181818]
[1726269156837,3.5985,138.87,138.83,4.78131818]
[1726269158131,3.5985,138.87,138.83,1.18181818]
[1726269158337,3.5987,138.86,138.83,1.18181818]
[1726269159132,3.599,138.85,138.83,1.18181818]
[1726269161041,3.5992,138.84,138.83,1.18181818]
[1726269161835,3.5991,138.85,138.83,1.18181818]
[1726269163450,19.93918205,138.92,138.83,1.18181818]
[1726269163637,1.06242893,138.91,138.83,1.18181818]
[1726269163838,3.5992,138.85,138.83,1.18181818]
[1726269164139,19.93918205,138.92,138.83,1.18181818]
[1726269164342,1.06249022,138.91,138.83,1.18181818]
[1726269165241,3.5992,138.84,138.83,1.18181818]
[1726269167435,3.5991,138.85,138.83,1.18181818]
[1726269169140,2.8572,138.92,138.83,1.18181818]
[1726269169141,3.5992,138.84,138.83,1.18181818]
[1726269171456,3.5992,138.85,138.83,1.18181818]
[1726269171953,4.0205,138.87,138.83,1.18181818]
[1726269172145,4.0205,138.87,138.83,4.78111818]
[1726269172345,21.09841997,138.87,138.83,4.78111818]
[1726269172545,4.0205,138.87,138.83,4.78111818]
[1726269172946,7.6191,138.87,138.83,4.78111818]
[1726269173957,3.5987,138.86,138.83,4.78111818]
[1726269174848,3.5987,138.86,138.83,1.18181818]
[1726269175043,4.0205,138.87,138.83,1.18181818]
[1726269175642,3.5989,138.86,138.83,1.18181818]
[1726269176547,3.599,138.85,138.83,1.18181818]
[1726269178357,3.5988,138.86,138.83,1.18181818]
[1726269178556,1.3259,138.87,138.83,1.18181818]
[1726269178956,4.9245,138.87,138.83,4.78111818]
[1726269179553,3.5987,138.86,138.83,4.78111818]
[1726269182953,3.5987,138.86,138.83,1.18181818]
[1726269185462,3.599,138.85,138.83,1.18181818]
[1726269187269,3.5988,138.86,138.83,1.18181818]
[1726269188564,1.3259,138.87,138.83,1.18181818]
[1726269188565,3.599,138.85,138.83,1.18181818]
[1726269189558,1.3259,138.87,138.83,1.18181818]
[1726269190859,3.5991,138.85,138.83,1.18181818]
[1726269191060,1.3259,138.87,138.83,1.18181818]
[1726269192361,4.0775,138.87,138.83,1.18181818]
[1726269192557,3.5992,138.84,138.83,1.18181818]
[1726269193771,3.5992,138.84,138.82,1.18181818]
[1726269193772,4.0775,138.87,138.8,2.36363636]
[1726269193966,7.69747044,138.87,138.8,2.36363636]
[1726269194168,3.6,138.81,138.8,2.36363636]
[1726269196675,20.68777259,138.81,138.8,2.36363636]
[1726269196876,3.6,138.81,138.8,2.36363636]
[1726269198572,20.68777259,138.81,138.8,2.36363636]
[1726269198769,3.6,138.81,138.8,2.36363636]
[1726269200875,3.6003,138.8,138.79,1.18181818]
[1726269214501,3.6003,138.8,138.79,0.98181818]
[1726269216610,3.6,138.81,138.79,0.98181818]
[1726269216797,18.52467259,138.86,138.79,0.98181818]
[1726269217000,1.06284403,138.85,138.79,0.98181818]
[1726269217300,3.6002,138.81,138.79,0.98181818]
[1726269219497,17.08777259,138.86,138.79,0.98181818]
[1726269220114,3.5993,138.84,138.79,4.64520441]
[1726269220503,3.5993,138.84,138.79,8.24560441]
[1726269222003,3.5995,138.83,138.79,8.24560441]
[1726269222709,17.08777259,138.86,138.79,8.24560441]
[1726269223015,3.5994,138.84,138.79,8.24560441]
[1726269223717,3.599,138.85,138.8,5.0398]
[1726269227406,3.5993,138.84,138.8,5.0398]
[1726269228822,3.66735459,138.9,138.8,1.4396]
[1726269229120,20.75757208,138.9,138.81,2.7497]
[1726269229321,17.09021749,138.89,138.81,2.7497]
[1726269229520,17.09021749,138.88,138.81,2.7497]
[1726269229824,3.5988,138.86,138.81,6.3496]
[1726269230720,3.599,138.85,138.81,2.7497]
[1726269231108,3.5993,138.84,138.81,2.7497]
[1726269234720,3.62982828,138.89,138.81,2.7497]
[1726269234924,1.06467241,138.88,138.8,1.4396]
[1726269235123,20.77099917,138.89,138.8,1.4396]
[1726269235423,3.5997,138.83,138.8,1.4396]
[1726269237426,3.5998,138.82,138.8,1.4396]
[1726269239630,3.6,138.81,138.8,1.4396]
[1726269240032,22.03410879,138.91,138.79,0.98181818]
[1726269240230,18.17806115,138.9,138.79,0.98181818]
[1726269240430,3.6002,138.81,138.79,0.98181818]
[1726269242026,1.4183,138.86,138.79,0.98181818]
[1726269243032,3.6001,138.81,138.79,0.98181818]
[1726269243835,1.4183,138.86,138.79,0.98181818]
[1726269246532,3.5998,138.82,138.79,0.98181818]
[1726269247843,3.6002,138.81,138.79,0.98181818]
[1726269254442,1.4137,138.8,138.77,1.18181818]
[1726269254642,2.8254,138.8,138.77,1.18181818]
[1726269254842,3.6008,138.78,138.77,1.18181818]
[1726269260544,3.6011,138.77,138.76,1.18181818]
[1726269278772,4.66669746,138.77,138.76,1.18181818]
[1726269279264,4.66669437,138.77,138.76,1.18181818]
[1726269282064,4.66687654,138.77,138.76,1.18181818]
[1726269283366,1.06577654,138.77,138.72,1.18181818]
[1726269283560,2.8254,138.8,138.71,2.36363636]
[1726269283561,1.06577654,138.76,138.71,2.36363636]
[1726269283869,1.06577654,138.75,138.71,2.36363636]
[1726269284265,1.06577654,138.74,138.71,2.36363636]
[1726269284462,17.10100213,138.79,138.71,2.36363636]
[1726269284771,1.06556914,138.78,138.71,2.36363636]
[1726269286168,1.06565945,138.77,138.71,2.36363636]
[1726269286373,3.6023,138.73,138.71,2.36363636]
[1726269287168,3.6024,138.72,138.71,2.36363636]
[1726269299589,14.6824,138.72,138.71,2.36363636]
[1726269301692,7.2016,138.79,138.71,2.36363636]
[1726269301888,1.06627957,138.78,138.71,2.36363636]
[1726269302085,11.08,138.74,138.71,2.36363636]
[1726269302288,11.08,138.72,138.71,2.36363636]
[1726269302589,3.6023,138.73,138.71,2.36363636]
[1726269302895,11.08,138.72,138.71,2.36363636]
[1726269303193,8.9048,138.72,138.71,2.36363636]
[1726269303691,4.5542,138.72,138.71,2.36363636]
[1726269303892,3.6023,138.73,138.71,2.36363636]
[1726269304193,11.08,138.72,138.71,2.36363636]
[1726269304997,3.6017,138.75,138.71,5.99532793]
[1726269305191,11.08,138.74,138.71,5.99532793]
[1726269305388,3.6017,138.75,138.71,5.99532793]
[1726269305594,14.6817,138.75,138.71,5.99532793]
[1726269305996,3.6018,138.74,138.71,5.99532793]
[1726269306698,14.6818,138.74,138.71,5.99532793]
[1726269307699,11.08,138.74,138.71,5.99532793]
[1726269308091,14.6817,138.75,138.71,5.99532793]
[1726269308292,14.6817,138.75,138.71,2.36363636]
[1726269308293,14.6816,138.75,138.71,2.36363636]
[1726269308487,11.08,138.72,138.71,2.36363636]
[1726269309093,14.6824,138.72,138.71,2.36363636]
[1726269310497,11.08,138.72,138.71,2.36363636]
[1726269311795,3.6012,138.77,138.71,2.36363636]
[1726269311998,11.08,138.75,138.71,2.36363636]
[1726269312396,14.6817,138.75,138.71,2.36363636]
[1726269312593,17.12989328,138.79,138.72,3.63709802]
[1726269312792,17.12989328,138.79,138.73,11.08]
[1726269313003,11.08,138.76,138.72,5.68709802]
[1726269313795,14.6815,138.76,138.72,5.68709802]
[1726269314202,11.08,138.76,138.72,5.68709802]
[1726269314398,14.6814,138.76,138.72,5.68709802]
[1726269316807,3.6016,138.75,138.72,5.68709802]
[1726269317005,11.08,138.76,138.72,5.68709802]
[1726269317706,14.6815,138.76,138.72,5.68709802]
[1726269319801,3.6015,138.76,138.72,5.68709802]
[1726269320307,3.6015,138.76,138.73,11.08]
[1726269322311,3.601,138.78,138.74,11.08]
[1726269322710,11.08,138.8,138.74,11.08]
[1726269323012,11.08,138.8,138.75,11.08]
[1726269323399,3.6007,138.79,138.75,11.08]
[1726269324807,11.08,138.8,138.72,5.68709802]
[1726269325012,11.08,138.8,138.75,11.08]
[1726269325205,3.6006,138.79,138.75,11.08]
[1726269325600,11.08,138.8,138.75,11.08]
[1726269326913,3.6006,138.79,138.75,11.08]
[1726269330019,3.6009,138.78,138.75,11.08]
[1726269331615,3.6004,138.8,138.76,11.08]
[1726269332203,3.6004,138.8,138.76,14.6813]
[1726269332909,14.6801,138.81,138.77,11.08]
[1726269333115,3.6001,138.81,138.77,11.08]
[1726269334817,3.5999,138.82,138.77,11.08]
[1726269335113,14.6799,138.82,138.77,14.681]
[1726269336509,14.6799,138.82,138.77,11.08]
[1726269338421,14.6799,138.82,138.77,14.681]
[1726269340922,14.6799,138.82,138.77,11.08]
[1726269341320,11.08,138.82,138.76,11.08]
[1726269341721,28.1824226,138.82,138.76,11.08]
[1726269341924,20.7026226,138.81,138.76,11.08]
[1726269342119,3.6002,138.81,138.76,11.08]
[1726269346027,3.6002,138.81,138.75,3.6014]
[1726269346230,11.08,138.79,138.75,11.08]
[1726269346730,14.6805,138.79,138.75,11.08]
[1726269347831,3.6004,138.8,138.75,14.6815]
[1726269348230,11.08,138.81,138.75,11.08]
[1726269348727,3.6007,138.79,138.75,11.08]
[1726269350432,3.6007,138.79,138.74,3.6017]
[1726269350632,3.6007,138.79,138.76,11.08]
[1726269351219,11.08,138.78,138.72,3.63709802]
[1726269351420,12.4977,138.78,138.72,11.08]
[1726269351625,3.6014,138.76,138.73,3.61869115]
[1726269355234,3.6016,138.75,138.73,3.61869115]
[1726269360733,11.08,138.74,138.71,2.36363636]
[1726269360937,1.3333,138.73,138.71,2.36363636]
[1726269361138,14.6824,138.72,138.71,2.36363636]
[1726269362529,3.6024,138.72,138.71,2.36363636]
[1726269362728,4.9355,138.73,138.71,2.36363636]
[1726269371236,22.06392088,138.73,138.71,2.36363636]
[1726269371441,4.9355,138.73,138.71,2.36363636]
[1726269371649,22.06393488,138.73,138.71,2.36363636]
[1726269373047,1.3158,138.74,138.71,2.36363636]
[1726269373542,4.9178,138.74,138.71,2.36363636]
[1726269374248,15.9978,138.74,138.71,2.36363636]
[1726269374546,3.6022,138.73,138.71,2.36363636]
[1726269374747,14.6822,138.73,138.71,2.36363636]
[1726269375346,3.6024,138.72,138.71,2.36363636]
[1726269376954,33.2357104,138.73,138.71,2.36363636]
[1726269377140,5.0293,138.73,138.71,2.36363636]
[1726269377345,16.1093,138.73,138.71,2.36363636]
[1726269377646,33.22862381,138.73,138.71,2.36363636]
[1726269377845,16.1093,138.73,138.71,2.36363636]
[1726269378348,33.22598887,138.73,138.71,2.36363636]
[1726269378650,1.4271,138.73,138.71,2.36363636]
[1726269391559,3.6017,138.75,138.71,13.44363636]
[1726269391957,11.08,138.74,138.71,2.36363636]
[1726269392159,11.08,138.72,138.71,2.36363636]
[1726269392356,11.08,138.72,138.7,1.18181818]
[1726269392853,12.4907,138.72,138.7,1.18181818]
[1726269393051,3.6026,138.71,138.7,1.18181818]
[1726269394358,16.0932,138.72,138.7,1.18181818]
[1726269394561,1.4107,138.72,138.7,1.18181818]
[1726269396165,4.9829,138.73,138.7,1.18181818]
[1726269396957,1.3807,138.73,138.7,1.18181818]
[1726269397651,17.12885782,138.77,138.7,12.26181818]
[1726269397652,3.6017,138.75,138.7,12.26181818]
[1726269397851,17.12885782,138.76,138.73,11.08]
[1726269398067,17.4957,138.78,138.73,11.08]
[1726269398266,17.12391287,138.77,138.73,11.08]
[1726269398657,3.6013,138.76,138.73,11.08]
[1726269403261,2.8147,138.78,138.74,11.08]
[1726269403466,18.83132588,138.78,138.74,11.08]
[1726269403661,2.8147,138.78,138.74,11.08]
[1726269403861,3.6011,138.77,138.74,11.08]
[1726269406264,22.43355409,138.78,138.74,11.08]
[1726269406669,18.83255409,138.78,138.74,11.08]
[1726269406857,3.6011,138.77,138.74,11.08]
[1726269407963,22.43461599,138.78,138.74,11.08]
[1726269408367,6.4156,138.78,138.74,11.08]
[1726269408870,3.6011,138.77,138.72,3.6022]
[1726269409071,3.6011,138.77,138.73,11.08]
[1726269409265,3.6011,138.77,138.73,14.62174255]
[1726269411665,3.6011,138.77,138.74,11.08]
[1726269412375,6.4156,138.78,138.74,11.08]
[1726269413164,16.02863722,138.79,138.73,7.14374255]
[1726269413165,19.62933722,138.79,138.76,11.08]
[1726269413368,118.10519825,138.82,138.76,11.08]
[1726269413673,16.03626236,138.81,138.76,11.08]
[1726269413878,3.6005,138.8,138.76,14.60286518]
[1726269414175,16.03626236,138.81,138.76,14.60286518]
[1726269414376,3.6004,138.8,138.76,14.60286518]
[1726269414578,16.03626236,138.81,138.76,14.60286518]
[1726269414781,16.03626236,138.81,138.74,3.6017]
[1726269415074,3.6007,138.79,138.75,11.08]
[1726269415374,3.6007,138.79,138.75,14.6720328]
[1726269417872,3.6007,138.79,138.76,11.08]
[1726269423780,16.03626236,138.82,138.78,11.08]
[1726269423975,2.7301,138.83,138.78,11.08]
[1726269424480,3.5999,138.82,138.78,11.08]
[1726269425579,22.36596236,138.83,138.79,11.08]
[1726269425783,16.03626236,138.82,138.79,11.08]
[1726269426079,6.3297,138.83,138.79,11.08]
[1726269428081,2.7301,138.83,138.76,11.08]
[1726269428290,18.76636236,138.83,138.76,11.08]
[1726269428488,3.6003,138.8,138.76,11.08]
[1726269429783,3.6005,138.79,138.76,11.08]
[1726269429986,3.6005,138.79,138.75,3.5920328]
[1726269430189,3.6005,138.79,138.76,11.08]
[1726269430383,3.6005,138.79,138.76,14.71464028]
[1726269433086,3.6011,138.77,138.73,3.602]
[1726269433290,16.03626236,138.82,138.71,5.00440586]
[1726269433497,11.08,138.79,138.74,11.08]